bitfinex/quotes_BTCUSD_20240828
["timestamp","ask_amount","ask_price","bid_price","bid_amount"]
[1724819104256,0.11839024,59733.0,59731.0,0.167417]
[1724819104667,0.001,59732.0,59731.0,0.167417]
[1724819104868,0.001,59732.0,59731.0,0.26989319]
[1724819105080,0.14563922,59733.0,59731.0,0.174417]
[1724819105614,0.02724898,59733.0,59732.0,0.99307]
[1724819105832,0.02724898,59733.0,59732.0,1.350898]
[1724819105833,0.02624898,59733.0,59732.0,1.350898]
[1724819106036,0.02624898,59733.0,59732.0,1.349898]
[1724819106971,0.02624898,59733.0,59732.0,1.348898]
[1724819107819,0.02724898,59733.0,59732.0,0.99807]
[1724819108106,0.02724898,59733.0,59732.0,0.92707]
[1724819109691,0.02724898,59733.0,59732.0,0.84207]
[1724819110585,0.02724898,59733.0,59732.0,0.89211817]
[1724819110790,0.001,59733.0,59732.0,0.89211817]
[1724819111020,0.001,59733.0,59732.0,0.91714225]
[1724819111230,0.001,59733.0,59732.0,0.84207]
[1724819111437,0.001,59733.0,59732.0,0.91714225]
[1724819112228,0.001,59733.0,59732.0,1.06774225]
[1724819112436,0.001,59733.0,59732.0,1.5617971]
[1724819112640,0.001,59733.0,59732.0,1.77133822]
[1724819112846,0.001,59733.0,59732.0,1.76833822]
[1724819113049,0.001,59733.0,59732.0,1.77133822]
[1724819113186,0.001,59733.0,59732.0,1.53373592]
[1724819113387,0.001,59733.0,59732.0,1.51073896]
[1724819113613,0.000819,59735.0,59734.0,0.200958]
[1724819113818,0.000819,59735.0,59734.0,0.25007364]
[1724819114029,0.000819,59735.0,59734.0,0.58489064]
[1724819114233,0.02706506,59735.0,59734.0,0.58489064]
[1724819114434,0.14358689,59735.0,59734.0,0.08366564]
[1724819114638,0.14358689,59735.0,59732.0,0.08366564]
[1724819114639,0.0683,59734.0,59732.0,0.08366564]
[1724819114861,0.00186841,59733.0,59732.0,0.200964]
[1724819116623,0.00186841,59733.0,59731.0,0.03355]
[1724819116825,0.20122183,59732.0,59731.0,0.5358]
[1724819117442,0.000819,59735.0,59732.0,0.368378]
[1724819117647,0.001,59733.0,59732.0,0.84133886]
[1724819117850,0.000819,59735.0,59733.0,0.334823]
[1724819118105,0.000819,59735.0,59734.0,0.502225]
[1724819118313,0.000819,59735.0,59734.0,0.501225]
[1724819119753,0.001819,59735.0,59734.0,0.501225]
[1724819120208,0.000819,59735.0,59734.0,0.501225]
[1724819120406,0.000819,59735.0,59734.0,0.55135883]
[1724819120615,0.000819,59735.0,59734.0,0.55535883]
[1724819120616,0.001819,59735.0,59734.0,0.55535883]
[1724819120817,0.001819,59735.0,59734.0,0.57336559]
[1724819121026,0.001819,59735.0,59734.0,0.58236559]
[1724819121447,0.001819,59735.0,59734.0,0.53223176]
[1724819121775,0.001819,59735.0,59734.0,0.58236812]
[1724819122630,0.001819,59735.0,59734.0,0.91718512]
[1724819122834,0.001819,59735.0,59734.0,1.48615373]
[1724819123042,0.001819,59735.0,59734.0,0.97395129]
[1724819123453,0.0280649,59735.0,59734.0,1.02409236]
[1724819123656,0.0280649,59735.0,59734.0,0.97395129]
[1724819124010,0.0280649,59735.0,59734.0,1.02409236]
[1724819124792,0.0280649,59735.0,59734.0,0.97395129]
[1724819125489,0.0280649,59735.0,59734.0,1.02409148]
[1724819125765,0.0280649,59735.0,59734.0,0.97395129]
[1724819126149,0.0280649,59735.0,59734.0,1.02409148]
[1724819126763,0.0280649,59735.0,59734.0,0.97395129]
[1724819126969,0.0280649,59735.0,59734.0,1.02409198]
[1724819127949,0.0280649,59735.0,59734.0,1.02408625]
[1724819128162,0.0280649,59735.0,59734.0,1.02408556]
[1724819128360,0.0280649,59735.0,59734.0,0.97395129]
[1724819128573,0.0280649,59735.0,59734.0,1.42074583]
[1724819128775,0.0280649,59735.0,59734.0,1.04916424]
[1724819128974,0.0280649,59735.0,59734.0,1.42074882]
[1724819129336,0.0280649,59735.0,59734.0,1.02408322]
[1724819129541,0.0280649,59735.0,59734.0,1.02408331]
[1724819129848,0.0280649,59735.0,59734.0,0.63913429]
[1724819130032,0.0280649,59735.0,59734.0,0.53223429]
[1724819130244,0.0280649,59735.0,59734.0,0.58236777]
[1724819130444,0.1815649,59735.0,59734.0,0.19741774]
[1724819131259,0.1815649,59735.0,59734.0,0.03100974]
[1724819131688,0.157319,59735.0,59734.0,0.03100974]
[1724819131908,0.16417435,59735.0,59734.0,0.03100974]
[1724819133149,0.16417435,59735.0,59734.0,0.03101512]
[1724819133326,0.16417435,59735.0,59734.0,0.013]
[1724819133529,0.16417435,59735.0,59734.0,0.03101851]
[1724819135793,0.19042253,59735.0,59734.0,0.03101851]
[1724819136319,0.19042253,59735.0,59734.0,0.013]
[1724819137934,0.16417435,59735.0,59734.0,0.013]
[1724819140355,0.16604276,59735.0,59734.0,0.013]
[1724819140971,0.28255494,59735.0,59734.0,0.013]
[1724819141185,0.30880343,59735.0,59734.0,0.013]
[1724819141840,0.30880343,59735.0,59734.0,0.009]
[1724819141841,0.30780343,59735.0,59734.0,0.009]
[1724819142046,0.35114425,59735.0,59734.0,0.009]
[1724819142377,0.35114425,59735.0,59734.0,0.012]
[1724819142585,0.35114425,59735.0,59734.0,0.003]
[1724819142798,0.1481,59732.0,59731.0,0.0009009]
[1724819143025,0.26648059,59732.0,59731.0,0.0009009]
[1724819143230,0.27270217,59732.0,59731.0,0.0009009]
[1724819144739,0.28170217,59732.0,59731.0,0.0009009]
[1724819145029,0.33194407,59732.0,59731.0,0.0009009]
[1724819145286,0.38823361,59732.0,59731.0,0.0009009]
[1724819145518,0.43344348,59732.0,59731.0,0.0009009]
[1724819145738,0.40833872,59732.0,59731.0,0.0009009]
[1724819145958,0.39933872,59732.0,59731.0,0.0009009]
[1724819146176,0.30292833,59732.0,59731.0,0.0009009]
[1724819146627,0.29892833,59732.0,59731.0,0.0009009]
[1724819146843,0.29892833,59732.0,59731.0,0.0019009]
[1724819146844,0.38720325,59732.0,59731.0,0.0019009]
[1724819147079,0.31192833,59732.0,59731.0,0.0019009]
[1724819147313,0.40120315,59732.0,59731.0,0.0019009]
[1724819147559,0.38820315,59732.0,59731.0,0.0009009]
[1724819147792,0.38820315,59732.0,59731.0,0.0019009]
[1724819148017,0.37597699,59732.0,59731.0,0.0019009]
[1724819148233,0.37707421,59732.0,59731.0,0.0019009]
[1724819148458,0.37707421,59732.0,59723.0,0.001]
[1724819148459,0.007,59724.0,59723.0,0.001]
[1724819148708,0.28131144,59721.0,59716.0,0.0008998]
[1724819148959,0.42407985,59721.0,59716.0,0.0008998]
[1724819149191,0.5477899,59721.0,59716.0,0.0008998]
[1724819150363,0.5617899,59721.0,59720.0,0.0018998]
[1724819150812,0.27347846,59721.0,59720.0,0.0008998]
[1724819151038,0.15696628,59721.0,59720.0,0.0008998]
[1724819151254,0.28361005,59721.0,59720.0,0.0008998]
[1724819151599,0.28547846,59721.0,59720.0,0.0008998]
[1724819151811,0.16896628,59721.0,59720.0,0.0008998]
[1724819152028,0.18296628,59721.0,59720.0,0.0008998]
[1724819152262,0.20922484,59721.0,59720.0,0.0008998]
[1724819152502,0.20735643,59721.0,59720.0,0.0008998]
[1724819153197,0.19535643,59721.0,59720.0,0.0008998]
[1724819153434,0.20235643,59721.0,59720.0,0.0008998]
[1724819153899,0.16909787,59721.0,59720.0,0.0008998]
[1724819154128,0.18109787,59721.0,59720.0,0.0008998]
[1724819154372,0.18609787,59721.0,59720.0,0.0008998]
[1724819155397,0.21235529,59721.0,59720.0,0.0008998]
[1724819156740,0.06645529,59721.0,59720.0,0.0008998]
[1724819157836,0.06145529,59721.0,59720.0,0.0008998]
[1724819158025,0.06645529,59721.0,59720.0,0.0008998]
[1724819158454,0.04045529,59721.0,59720.0,0.0008998]
[1724819158589,0.05245529,59721.0,59720.0,0.0008998]
[1724819159029,0.04045529,59721.0,59720.0,0.0008998]
[1724819159253,0.05445529,59721.0,59720.0,0.0008998]
[1724819159462,0.04945529,59721.0,59720.0,0.0008998]
[1724819159840,0.05745529,59721.0,59720.0,0.0008998]
[1724819160248,0.05545529,59721.0,59720.0,0.0008998]
[1724819160455,0.02119787,59721.0,59720.0,0.3101478]
[1724819160655,0.02219787,59721.0,59720.0,0.3101478]
[1724819160951,0.001,59721.0,59720.0,0.3101478]
[1724819161190,0.005,59721.0,59720.0,0.1426998]
[1724819161399,0.002,59721.0,59720.0,0.0008998]
[1724819161615,0.0817,59721.0,59720.0,0.0008998]
[1724819161834,0.15487173,59721.0,59720.0,0.0008998]
[1724819162006,0.15087173,59721.0,59720.0,0.0008998]
[1724819162410,0.15387173,59721.0,59720.0,0.0008998]
[1724819162563,0.15087173,59721.0,59720.0,0.0008998]
[1724819162770,0.1669589,59721.0,59720.0,0.0008998]
[1724819162983,0.15374014,59721.0,59720.0,0.0008998]
[1724819163239,0.15274014,59721.0,59720.0,0.0008998]
[1724819163986,0.18599775,59721.0,59720.0,0.0008998]
[1724819164397,0.17899775,59721.0,59720.0,0.0008998]
[1724819164638,0.18599775,59721.0,59720.0,0.0008998]
[1724819169796,0.15974014,59721.0,59720.0,0.0008998]
[1724819170666,0.20486256,59721.0,59720.0,0.0008998]
[1724819171629,0.15974014,59721.0,59720.0,0.0008998]
[1724819173167,0.18599921,59721.0,59720.0,0.0008998]
[1724819174270,0.49154415,59721.0,59720.0,0.0008998]
[1724819174761,0.56659368,59721.0,59720.0,0.0008998]
[1724819174978,0.55959368,59721.0,59720.0,0.0008998]
[1724819175429,0.73124773,59721.0,59720.0,0.0008998]
[1724819175665,0.64216678,59721.0,59720.0,0.0008998]
[1724819175887,0.69219718,59721.0,59720.0,0.0008998]
[1724819176124,0.70619718,59721.0,59720.0,0.0008998]
[1724819176371,0.65616678,59721.0,59720.0,0.0008998]
[1724819176607,0.64216678,59721.0,59720.0,0.0008998]
[1724819176862,0.47954415,59721.0,59720.0,0.0008998]
[1724819177100,0.21923271,59721.0,59720.0,0.0008998]
[1724819177321,0.23323271,59721.0,59720.0,0.0008998]
[1724819177559,0.19299921,59721.0,59720.0,0.0008998]
[1724819177788,0.20699921,59721.0,59720.0,0.0008998]
[1724819178031,0.25742933,59721.0,59720.0,0.0008998]
[1724819178237,0.2332317,59721.0,59720.0,0.0008998]
[1724819178647,0.2192317,59721.0,59720.0,0.0008998]
[1724819179063,0.2332317,59721.0,59720.0,0.0008998]
[1724819179484,0.2192317,59721.0,59720.0,0.0008998]
[1724819179877,0.2332317,59721.0,59720.0,0.0008998]
[1724819180112,0.20697263,59721.0,59720.0,0.0008998]
[1724819181175,0.06527263,59721.0,59720.0,0.0008998]
[1724819181388,0.03904014,59721.0,59720.0,0.0008998]
[1724819182309,0.01104014,59721.0,59720.0,0.0008998]
[1724819182909,0.02204014,59721.0,59720.0,0.0008998]
[1724819183384,0.01104014,59721.0,59720.0,0.0008998]
[1724819183843,0.03204014,59721.0,59720.0,0.0008998]
[1724819184499,0.01804014,59721.0,59720.0,0.0008998]
[1724819184941,0.02604014,59721.0,59720.0,0.0008998]
[1724819185153,0.04529592,59721.0,59720.0,0.0008998]
[1724819185359,0.19369592,59721.0,59720.0,0.0008998]
[1724819186002,0.18569592,59721.0,59720.0,0.0008998]
[1724819186227,0.18369592,59721.0,59720.0,0.0008998]
[1724819186453,0.06229592,59721.0,59720.0,0.0008998]
[1724819186700,0.06229592,59721.0,59720.0,0.1427998]
[1724819186941,0.05129592,59721.0,59720.0,0.1427998]
[1724819187166,0.02504014,59721.0,59720.0,0.1427998]
[1724819187803,0.01104014,59721.0,59720.0,0.1427998]
[1724819188261,0.02317173,59721.0,59720.0,0.1427998]
[1724819188443,0.01,59721.0,59720.0,0.1427998]
[1724819188888,0.016,59721.0,59720.0,0.1427998]
[1724819189297,0.025,59721.0,59720.0,0.15725974]
[1724819189768,0.025,59721.0,59720.0,0.1427998]
[1724819190182,0.016,59721.0,59720.0,0.1427998]
[1724819190391,0.014,59721.0,59720.0,0.1427998]
[1724819190814,0.000818,59723.0,59721.0,0.1462]
[1724819191024,0.000818,59723.0,59720.0,0.0008998]
[1724819191025,0.000818,59723.0,59722.0,0.313642]
[1724819191234,0.000818,59723.0,59722.0,0.1392]
[1724819191912,0.002,59721.0,59720.0,0.0008998]
[1724819192135,0.00386841,59721.0,59720.0,0.0008998]
[1724819192380,0.01194075,59721.0,59720.0,0.0008998]
[1724819192606,0.00386841,59721.0,59720.0,0.0008998]
[1724819193287,0.01194075,59721.0,59720.0,0.0008998]
[1724819193465,0.00486841,59721.0,59720.0,0.0674998]
[1724819193973,0.03112385,59721.0,59720.0,0.0674998]
[1724819194182,0.03112385,59721.0,59720.0,0.09117554]
[1724819194398,0.03325544,59721.0,59720.0,0.0684998]
[1724819194901,0.03325544,59721.0,59720.0,0.1479998]
[1724819195113,0.03325544,59721.0,59720.0,0.3154478]
[1724819200384,0.03325544,59721.0,59720.0,0.6503438]
[1724819200589,0.03325544,59721.0,59720.0,0.66837241]
[1724819200818,0.007,59721.0,59720.0,0.66837241]
[1724819201244,0.007,59721.0,59720.0,0.33347641]
[1724819201458,0.007,59721.0,59720.0,1.00326841]
[1724819201660,0.007,59721.0,59720.0,0.9852398]
[1724819201872,0.007,59721.0,59720.0,1.00326948]
[1724819202299,0.006,59721.0,59720.0,1.00326948]
[1724819202531,0.001,59721.0,59720.0,1.00226948]
[1724819202942,0.002,59721.0,59720.0,1.00926948]
[1724819204009,0.02825241,59721.0,59720.0,1.00926948]
[1724819205071,0.02825241,59721.0,59720.0,0.9912398]
[1724819205274,0.02825241,59721.0,59720.0,1.00926934]
[1724819206391,0.02825241,59721.0,59720.0,1.0371908]
[1724819208897,0.02825241,59721.0,59720.0,0.1999508]
[1724819209120,0.02825241,59721.0,59720.0,0.1539998]
[1724819209339,0.02825241,59721.0,59720.0,0.19995068]
[1724819209567,0.02825241,59721.0,59720.0,0.17202864]
[1724819209786,0.02825241,59721.0,59720.0,0.33947664]
[1724819210010,0.02825241,59721.0,59720.0,0.67437264]
[1724819210239,0.02825241,59721.0,59720.0,1.00926864]
[1724819210457,0.02825241,59721.0,59720.0,0.67437264]
[1724819214808,0.02825241,59721.0,59720.0,0.33947664]
[1724819214936,0.02825241,59721.0,59720.0,0.67437264]
[1724819215545,0.02825241,59721.0,59720.0,0.67437569]
[1724819215954,0.02825241,59721.0,59720.0,1.00927169]
[1724819216363,0.02825241,59721.0,59720.0,0.67437569]
[1724819219067,0.02825241,59721.0,59720.0,0.6563438]
[1724819219430,0.02825241,59721.0,59720.0,0.67437548]
[1724819220278,0.02825241,59721.0,59720.0,0.67437469]
[1724819220485,0.02825241,59721.0,59720.0,0.67437468]
[1724819224303,0.02825241,59721.0,59720.0,1.03227068]
[1724819224781,0.000818,59722.0,59721.0,0.003]
[1724819225006,0.000818,59722.0,59721.0,1.13654276]
[1724819225227,0.000818,59722.0,59721.0,1.86808404]
[1724819225449,0.000818,59722.0,59721.0,2.20303409]
[1724819225892,0.000818,59722.0,59721.0,2.10285576]
[1724819226101,0.001818,59722.0,59721.0,2.10885576]
[1724819226311,0.000818,59722.0,59721.0,2.22800362]
[1724819226749,0.001818,59722.0,59721.0,2.11085576]
[1724819227177,0.001818,59722.0,59721.0,2.11083243]
[1724819227393,0.001818,59722.0,59721.0,2.23605678]
[1724819227620,0.002818,59722.0,59721.0,2.24305678]
[1724819227907,0.002818,59722.0,59721.0,2.24304346]
[1724819228128,0.001818,59722.0,59721.0,2.23604463]
[1724819228340,0.001818,59722.0,59721.0,2.11083243]
[1724819228555,0.001818,59722.0,59721.0,2.24401691]
[1724819228556,0.002818,59722.0,59721.0,2.24401691]
[1724819228769,0.002818,59722.0,59721.0,2.22598603]
[1724819228999,0.002818,59722.0,59721.0,2.24400456]
[1724819229425,0.002818,59722.0,59721.0,2.24398803]
[1724819229646,0.000819,59734.0,59733.0,0.167411]
[1724819229860,0.000819,59734.0,59733.0,0.87807553]
[1724819230074,0.000819,59734.0,59733.0,1.21289853]
[1724819230958,0.000819,59734.0,59733.0,0.85707553]
[1724819231189,0.000819,59734.0,59733.0,0.52225253]
[1724819231421,0.000819,59734.0,59733.0,0.02001853]
[1724819231422,0.140819,59734.0,59733.0,0.02001853]
[1724819231657,0.142819,59734.0,59733.0,0.02001853]
[1724819231862,0.15109484,59734.0,59733.0,0.02001853]
[1724819232074,0.15109484,59734.0,59733.0,0.01801853]
[1724819232284,0.15109484,59734.0,59722.0,0.03355]
[1724819232285,0.0623,59726.0,59722.0,0.03355]
[1724819232491,0.0623,59726.0,59723.0,0.07384961]
[1724819232492,0.0807,59724.0,59723.0,0.07384961]
[1724819232695,0.0807,59724.0,59723.0,0.05833008]
[1724819234507,0.10695212,59724.0,59723.0,0.05833008]
[1724819234935,0.10695212,59724.0,59723.0,0.06133008]
[1724819235133,0.10695212,59724.0,59723.0,0.22876908]
[1724819235134,0.02625212,59724.0,59723.0,0.22876908]
[1724819235335,0.02625212,59724.0,59723.0,0.22576908]
[1724819235540,0.02625212,59724.0,59723.0,1.43195608]
[1724819235742,0.02625212,59724.0,59723.0,1.43595169]
[1724819236294,0.02625212,59724.0,59723.0,1.49201181]
[1724819236504,0.02625212,59724.0,59723.0,1.48901181]
[1724819236679,0.02625212,59724.0,59723.0,1.43895169]
[1724819236893,0.02625212,59724.0,59723.0,1.44795169]
[1724819237103,0.02707012,59724.0,59723.0,1.44795169]
[1724819237242,0.02707012,59724.0,59723.0,1.89465411]
[1724819237445,0.02807012,59724.0,59723.0,1.92868417]
[1724819237892,0.001818,59724.0,59723.0,1.92868417]
[1724819238051,0.001818,59724.0,59723.0,1.94439302]
[1724819238280,0.001818,59724.0,59723.0,1.93539302]
[1724819238281,0.000818,59724.0,59723.0,1.93539302]
[1724819238477,0.000818,59724.0,59723.0,1.84927278]
[1724819238678,0.001818,59724.0,59723.0,1.84927278]
[1724819239735,0.001818,59724.0,59723.0,1.8312467]
[1724819239865,0.001818,59724.0,59723.0,1.83355612]
[1724819240296,0.001818,59724.0,59723.0,1.97441529]
[1724819240505,0.001818,59724.0,59723.0,2.30929429]
[1724819242120,0.001818,59724.0,59723.0,2.29358542]
[1724819242393,0.001818,59724.0,59723.0,2.27556715]
[1724819242574,0.001818,59724.0,59723.0,2.15041685]
[1724819242920,0.001818,59724.0,59723.0,2.18414588]
[1724819243340,0.001818,59724.0,59723.0,2.30929618]
[1724819244356,0.001818,59724.0,59723.0,2.29358643]
[1724819244557,0.001818,59724.0,59723.0,2.16843613]
[1724819245223,0.001818,59724.0,59723.0,2.16842218]
[1724819245980,0.001818,59724.0,59723.0,2.31190439]
[1724819246122,0.001818,59724.0,59723.0,2.1866682]
[1724819246323,1e-08,59724.0,59723.0,2.1866682]
[1724819246845,1e-08,59724.0,59723.0,2.16864892]
[1724819247817,1e-08,59724.0,59723.0,2.18435805]
[1724819248260,1e-08,59724.0,59723.0,2.16611203]
[1724819248434,1e-08,59724.0,59723.0,2.18413013]
[1724819248841,1e-08,59724.0,59723.0,2.18412999]
[1724819249415,0.00076576,59734.0,59733.0,1.17188]
[1724819249618,0.00076576,59734.0,59733.0,1.21289796]
[1724819249834,0.13736431,59743.0,59742.0,0.167386]
[1724819250030,0.13736431,59743.0,59742.0,0.22570357]
[1724819250650,0.13736431,59743.0,59742.0,0.22570239]
[1724819250858,0.13736431,59743.0,59742.0,0.56047439]
[1724819251256,0.16361054,59743.0,59742.0,0.56047439]
[1724819252126,0.16361054,59743.0,59742.0,0.54245761]
[1724819252311,0.16361054,59743.0,59742.0,0.56048196]
[1724819252522,0.16361054,59743.0,59742.0,0.56148196]
[1724819253079,0.16561054,59743.0,59742.0,0.56148196]
[1724819254717,0.16561054,59743.0,59742.0,0.57485783]
[1724819255541,0.16561054,59743.0,59742.0,0.57485922]
[1724819255757,0.16561054,59743.0,59742.0,0.55683348]
[1724819255964,0.16561054,59743.0,59742.0,0.57485898]
[1724819256169,0.16561054,59743.0,59742.0,0.90963087]
[1724819256374,0.08841054,59743.0,59742.0,0.90963087]
[1724819257519,0.08841054,59743.0,59742.0,0.57485887]
[1724819257747,0.16771054,59743.0,59742.0,0.53455926]
[1724819257921,0.14146431,59743.0,59742.0,0.53455926]
[1724819259195,0.14146431,59743.0,59742.0,0.53455982]
[1724819261220,0.14146431,59743.0,59742.0,0.53455826]
[1724819262048,0.14228231,59743.0,59742.0,0.53455826]
[1724819262576,0.14228231,59743.0,59742.0,0.51653387]
[1724819262748,0.14228231,59743.0,59742.0,0.53455896]
[1724819262953,0.14228231,59743.0,59742.0,0.03240032]
[1724819263329,0.15043274,59743.0,59742.0,0.03240032]
[1724819263776,0.14228231,59743.0,59742.0,0.03240032]
[1724819263994,0.14228231,59743.0,59742.0,0.19978632]
[1724819264160,0.16852854,59743.0,59742.0,0.19978632]
[1724819264566,0.16852854,59743.0,59742.0,0.03240032]
[1724819265123,0.17667897,59743.0,59742.0,0.03240032]
[1724819266116,0.17667897,59743.0,59742.0,0.01437587]
[1724819266317,0.17667897,59743.0,59742.0,0.03240412]
[1724819266530,0.17667897,59743.0,59742.0,0.05238363]
[1724819266715,0.17667897,59743.0,59742.0,0.21976963]
[1724819267111,0.16852854,59743.0,59742.0,0.21976963]
[1724819267369,0.16852854,59743.0,59742.0,0.05238363]
[1724819267737,0.17567616,59743.0,59742.0,0.05238363]
[1724819268345,0.17567616,59743.0,59742.0,0.01437587]
[1724819268576,0.17567616,59743.0,59742.0,0.03240679]
[1724819268914,0.17567616,59743.0,59742.0,0.19979279]
[1724819269115,0.17567616,59743.0,59742.0,0.18176187]
[1724819269340,0.17567616,59743.0,59742.0,0.19979204]
[1724819269566,0.16852854,59743.0,59742.0,0.19979204]
[1724819270015,0.16852854,59743.0,59742.0,0.22771596]
[1724819270226,0.17066423,59743.0,59742.0,0.22771596]
[1724819270372,0.02906423,59743.0,59742.0,0.31744606]
[1724819272701,0.02906423,59743.0,59742.0,0.65221806]
[1724819272899,0.03621185,59743.0,59742.0,0.63418755]
[1724819273103,0.02906423,59743.0,59742.0,0.65221757]
[1724819275026,0.02906423,59743.0,59742.0,0.4704557]
[1724819275557,0.02906423,59743.0,59742.0,0.6378417]
[1724819275716,0.002818,59743.0,59742.0,0.6378417]
[1724819276792,0.002818,59743.0,59742.0,0.5918881]
[1724819276922,0.002818,59743.0,59742.0,0.63785514]
[1724819277117,0.002818,59743.0,59742.0,0.65164392]
[1724819277749,0.002818,59743.0,59742.0,0.22714182]
[1724819278360,0.002818,59743.0,59742.0,0.56191382]
[1724819278852,0.02906416,59743.0,59742.0,0.56191382]
[1724819280054,0.02906416,59743.0,59742.0,0.51594678]
[1724819280301,0.02906416,59743.0,59742.0,0.22713205]
[1724819280679,0.03536294,59743.0,59742.0,0.22713205]
[1724819280877,0.02906416,59743.0,59742.0,0.22713205]
[1724819282025,0.02906416,59743.0,59742.0,0.05974605]
[1724819282382,0.03536715,59743.0,59742.0,0.05974605]
[1724819282976,0.11296715,59743.0,59742.0,0.05974605]
[1724819286219,0.11296715,59743.0,59742.0,0.01378878]
[1724819286426,0.11296715,59743.0,59742.0,0.04596249]
[1724819286668,0.11296715,59743.0,59742.0,0.21334849]
[1724819287041,0.10666416,59743.0,59742.0,0.04596249]
[1724819287244,0.11296715,59743.0,59742.0,0.04596249]
[1724819287460,0.10666416,59743.0,59742.0,0.04596249]
[1724819288970,0.11296715,59743.0,59742.0,0.04596249]
[1724819290453,0.10666416,59743.0,59742.0,0.04596249]
[1724819291005,0.080418,59743.0,59742.0,0.04596249]
[1724819291221,0.080418,59743.0,59742.0,0.21334849]
[1724819291408,0.080418,59743.0,59742.0,0.21335682]
[1724819292300,0.002818,59743.0,59742.0,0.21335682]
[1724819294459,0.02906416,59743.0,59742.0,0.21335682]
[1724819294674,0.02906416,59743.0,59742.0,0.54812882]
[1724819295248,0.02906416,59743.0,59742.0,0.63002882]
[1724819295444,0.02906416,59743.0,59742.0,0.54812882]
[1724819296561,0.02906416,59743.0,59742.0,0.54811797]
[1724819297929,0.002818,59743.0,59742.0,0.54901777]
[1724819301123,0.002818,59743.0,59742.0,0.62443798]
[1724819301357,0.02906401,59743.0,59742.0,0.59929033]
[1724819301531,0.10456401,59743.0,59742.0,0.26451833]
[1724819301736,0.16906401,59743.0,59742.0,0.04685977]
[1724819302272,0.16906401,59743.0,59742.0,0.21245768]
[1724819302273,0.17538935,59743.0,59742.0,0.21245768]
[1724819302435,0.16906401,59743.0,59742.0,0.21245768]
[1724819302858,0.16906401,59743.0,59742.0,0.0008998]
[1724819303068,0.16906401,59743.0,59742.0,0.01893463]
[1724819303069,0.17538935,59743.0,59742.0,0.01893463]
[1724819303764,0.17538935,59743.0,59741.0,0.167387]
[1724819304229,0.16906401,59743.0,59742.0,0.167386]
[1724819304604,0.17338935,59743.0,59739.0,0.334787]
[1724819304806,0.17338935,59743.0,59741.0,0.167387]
[1724819305009,0.17638935,59743.0,59741.0,0.167387]
[1724819305531,0.17338935,59743.0,59738.0,0.01329665]
[1724819305690,0.25615021,59740.0,59734.0,0.167407]
[1724819305890,0.25615021,59740.0,59733.0,0.05027256]
[1724819306104,0.25615021,59740.0,59735.0,0.1683048]
[1724819306304,0.00632896,59739.0,59735.0,0.1683048]
[1724819306619,0.25615021,59740.0,59736.0,0.167403]
[1724819306823,0.25615021,59740.0,59735.0,0.01440187]
[1724819307024,0.25615021,59740.0,59735.0,0.18180587]
[1724819308115,0.25615021,59740.0,59736.0,0.167403]
[1724819308715,0.25615021,59740.0,59737.0,0.1674]
[1724819308716,0.1397,59740.0,59737.0,0.1674]
[1724819308915,0.1397,59740.0,59736.0,0.167403]
[1724819309069,0.00632896,59739.0,59736.0,0.167403]
[1724819309413,0.1397,59740.0,59736.0,0.167403]
[1724819310406,0.1397,59740.0,59736.0,0.335804]
[1724819310812,0.1397,59740.0,59737.0,0.1674]
[1724819310813,0.00551128,59739.0,59737.0,0.1674]
[1724819311012,0.00551128,59739.0,59738.0,0.167397]
[1724819311239,0.002,59741.0,59738.0,0.167397]
[1724819311412,0.002,59741.0,59736.0,0.335804]
[1724819311611,0.002,59741.0,59737.0,0.167398]
[1724819312016,0.002,59741.0,59737.0,0.169398]
[1724819312238,0.002,59741.0,59738.0,0.167397]
[1724819314320,0.02824671,59741.0,59739.0,0.027932]
[1724819315626,0.02824671,59741.0,59738.0,0.167397]
[1724819317275,0.02824671,59741.0,59739.0,0.045965]
[1724819317487,0.02824671,59741.0,59740.0,0.02793095]
[1724819317705,0.02824671,59741.0,59740.0,0.045965]
[1724819319178,0.02624671,59741.0,59740.0,0.213357]
[1724819319385,0.02624671,59741.0,59740.0,0.48551228]
[1724819319745,0.02624671,59741.0,59740.0,0.52546874]
[1724819321584,0.02706471,59741.0,59740.0,0.52546874]
[1724819322850,0.02706471,59741.0,59740.0,0.37474046]
[1724819323049,0.02706471,59741.0,59740.0,0.54213246]
[1724819325318,0.02706471,59741.0,59740.0,1.02381646]
[1724819325529,0.02706471,59741.0,59740.0,1.09608726]
[1724819325736,0.000818,59741.0,59740.0,1.50625557]
[1724819326183,0.000818,59741.0,59740.0,1.50625386]
[1724819326385,0.000818,59741.0,59740.0,1.50622962]
[1724819326744,0.000818,59741.0,59740.0,1.52022962]
[1724819326955,0.000818,59741.0,59740.0,1.52622962]
[1724819327530,0.000818,59741.0,59740.0,1.52022962]
[1724819327730,0.001818,59741.0,59740.0,1.53422962]
[1724819328589,0.001818,59741.0,59740.0,1.45886955]
[1724819328949,0.02806306,59741.0,59740.0,1.45886955]
[1724819329441,0.02806306,59741.0,59740.0,1.51851053]
[1724819329607,0.02806306,59741.0,59740.0,1.53422606]
[1724819330575,0.02806306,59741.0,59740.0,1.45886599]
[1724819331297,0.02806306,59741.0,59740.0,1.47688255]
[1724819331739,0.001818,59741.0,59740.0,1.47688255]
[1724819332650,0.001818,59741.0,59740.0,1.44315046]
[1724819332825,0.001818,59741.0,59740.0,1.94883258]
[1724819333026,0.001818,59741.0,59740.0,1.93311676]
[1724819333226,0.001818,59741.0,59740.0,1.93311808]
[1724819333411,0.001818,59741.0,59740.0,1.94883505]
[1724819333605,0.001818,59741.0,59740.0,1.84841656]
[1724819334472,0.0625,59752.0,59740.0,1.84841656]
[1724819334473,0.05104906,59772.0,59767.0,0.83658]
[1724819334838,0.05104906,59772.0,59768.0,0.2189007]
[1724819334839,0.000818,59772.0,59768.0,0.2189007]
[1724819335078,0.000818,59772.0,59771.0,0.167305]
[1724819335369,0.000818,59772.0,59771.0,0.51991162]
[1724819335501,0.0270501,59772.0,59771.0,0.167305]
[1724819335710,0.0270501,59772.0,59771.0,0.20726146]
[1724819336107,0.0270501,59772.0,59771.0,0.54187146]
[1724819337162,0.0280501,59772.0,59771.0,0.55087146]
[1724819337360,0.0280501,59772.0,59771.0,0.55587146]
[1724819338171,0.0280501,59772.0,59771.0,0.55087146]
[1724819338345,0.0280501,59772.0,59771.0,0.501915]
[1724819338553,0.0270501,59772.0,59771.0,0.501915]
[1724819338884,0.0270501,59772.0,59771.0,0.545485]
[1724819339529,0.0270501,59772.0,59771.0,0.551485]
[1724819339743,0.0270501,59772.0,59771.0,0.541485]
[1724819339891,0.0270501,59772.0,59771.0,0.535485]
[1724819340216,0.0270501,59772.0,59771.0,0.553485]
[1724819340421,0.0270501,59772.0,59771.0,0.880095]